Cogmind - Beta 11 X5 @@@ ROGUE MODE // 2021.07.10 @ 23:27:37 Player: Mares Result: Destroyed by G-47 Trooper with Particle Gun Performance ------------- Evolutions (0) 0 Regions Visited (2) 400 Robots Destroyed (46) 230 Value Destroyed (870) 870 Prototype IDs (0) 0 Alien Tech Used (0) 0 Bonus (14) 14 TOTAL SCORE: 1514 Bonus ------- High Alert Combat Kills 14 Cogmind --------- Core Integrity 0/250 Matter 283/300 Energy 57/100 System Corruption 0% Temperature Cool (9) Movement Walking (200) Ox1 Location -10/Mines Parts ------- > --- POWER (1) -------- (None) > --- PROPULSION (2) --- Aluminum Leg Aluminum Leg > --- UTILITY (2) ------ Heat Sink Large Storage Unit > --- WEAPON (2) ------- Beam Cannon Bore Cannon > --- INVENTORY (15) --- Aluminum Leg Improved Hover Unit Improved Hover Unit Improved Hover Unit Improved Hover Unit EM Pulse Gun EM Pulse Gun Beam Rifle Beam Rifle Particle Gun Particle Gun Particle Gun Grenade Launcher Grenade Launcher Rocket Launcher Peak State ------------ > --- POWER ------------ (None) > --- PROPULSION ------- Aluminum Leg Aluminum Leg > --- UTILITY ---------- Heat Sink Large Storage Unit > --- WEAPON ----------- Beam Cannon Bore Cannon > --- INVENTORY -------- Aluminum Leg Improved Hover Unit Improved Hover Unit Improved Hover Unit Improved Hover Unit EM Pulse Gun EM Pulse Gun Beam Rifle Beam Rifle Particle Gun Particle Gun Particle Gun Grenade Launcher Grenade Launcher Rocket Launcher [Rating: 12] Favorites ----------- Power Ion Engine Engine Ion Engine Propulsion Light Treads Treads Light Treads Leg Aluminum Leg Hover Unit Improved Hover Unit Utility Large Storage Unit Device Heat Sink Storage Large Storage Unit Protection Light Armor Plating Weapon Light Assault Rifle Energy Gun Beam Rifle Energy Cannon Beam Cannon Ballistic Gun Light Assault Rifle Ballistic Cannon Bore Cannon Launcher Grenade Launcher Build | -11 -10 -10 ------- Run | Scr Mat Min Slots Evolved . | . . . Power . | . . . Propulsion . | . . . Utility . | . . . Weapon . | . . . Parts Attached 24 | 6 8 10 Power 3 | 1 1 1 Engine 3 | 1 1 1 Core . | . . . Reactor . | . . . Propulsion 7 | 2 1 4 Treads 3 | 2 1 . Leg 2 | . . 2 Wheel . | . . . Hover 2 | . . 2 Flight . | . . . Utility 4 | 1 2 1 Device 1 | . . 1 Storage 2 | 1 1 . Processor . | . . . Hackware . | . . . Protection 1 | . 1 . Artifact . | . . . Weapon 10 | 2 4 4 Energy Gun 2 | . . 2 Energy Cannon 1 | . . 1 Ballistic Gun 5 | 2 3 . Ballistic Cannon 1 | . . 1 Launcher 1 | . 1 . Special Weapon . | . . . Impact Weapon . | . . . Slashing Weapon . | . . . Piercing Weapon . | . . . Special Melee Weapon . | . . . Unidentified Prototypes . | . . . Parts Lost 8 | . 2 6 Power 2 | . 1 1 Propulsion 3 | . 1 2 Utility 1 | . . 1 Weapon 2 | . . 2 Highest Loss Streak 3 | . 1 3 Average Slot Usage (%) 87 | . 82 91 Engine 11 | . 9 13 Treads 17 | . 28 8 Leg 9 | . . 16 Device 2 | . . 4 Storage 14 | . 14 14 Protection 3 | . 1 4 Energy Gun 7 | . . 14 Energy Cannon 5 | . . 9 Ballistic Gun 14 | . 27 4 Naked Turns . | . . . Heaviest Build 34 | 13 30 34 Greatest Support 40 | 40 40 40 Greatest Overweight (x) 4 | . . 4 Average Overweight (x) . | . . . Largest Inventory Capacity 15 | 8 15 15 Average Capacity 12 | 7 11 15 Most Carried 15 | 6 15 15 Average Carried 11 | 4 8 14 Final Capacity 15 | 8 15 15 Final Carried 15 | 6 15 15 Class Distribution -------------------- 85% | Mutant 14% | Scavenger-Mutant Dominant Class ---------------- Mutant | -10/Materials Mutant | -10/Mines Resources | -11 -10 -10 ----------- Run | Scr Mat Min Matter Collected 731 | 276 355 100 Remotely . | . . . Salvage Created 1348 | 83 776 489 Parts 105 | 4 62 39 Haulers Intercepted 2 | . 2 . Recyclers Shooed 1 | . 1 . Parts Field Recycled . | . . . Retrieved Matter . | . . . Parts Self-Destructed . | . . . Prevented . | . . . Kills | -11 -10 -10 ------- Run | Scr Mat Min Combat Hostiles Destroyed 32 | . 19 13 Guns 23 | . 16 7 Cannons 6 | . . 6 AOE 3 | . 3 . Classes Destroyed 8 | 1 6 1 Worker 3 | . 2 1 Tunneler 2 | . . 2 Hauler 2 | . 2 . Recycler 3 | 1 1 1 Operator 2 | . 2 . Watcher 2 | . 2 . Swarmer 15 | . 9 6 Grunt 17 | . 10 7 Best Kill Streak 14 | 1 14 3 Combat Bots Only 9 | . 9 3 Max Kills in Single Turn 5 | 1 5 1 Gunslinging . | . . . Exploded 2 | . 2 . Melee . | . . . Uniques/NPCs Destroyed . | . . . Combat | -11 -10 -10 -------- Run | Scr Mat Min Damage Taken 1491 | . 729 762 Core 261 | . 147 114 Absorbed by Shields . | . . . Core Remaining (%) 100 | 100 . . Volleys Fired 120 | 4 74 42 Largest 2 | 2 2 2 Hottest 125 | 40 40 125 Shots Fired 237 | 8 145 84 Gun 203 | 8 142 53 Cannon 31 | . . 31 Launcher 3 | . 3 . Special . | . . . Kinetic 165 | 8 142 15 Thermal 69 | . . 69 Explosive 3 | . 3 . Electromagnetic . | . . . Robot Hit Streak 13 | 2 10 13 Robot Miss Streak 5 | 5 4 4 Penetration Max . | . . . Secondary Targets 5 | . 4 1 Max Gunslinging Chain 1 | . 1 1 Shots Hit Robots 135 | 2 82 51 Core Hits 77 | 2 48 27 Critical Kills . | . . . Critical Parts Destroyed 1 | . 1 . Critical Strikes 2 | . 1 1 Burn 1 | . . 1 Destroy 1 | . 1 . Melee Attacks . | . . . Impact . | . . . Slashing . | . . . Piercing . | . . . Sneak Attacks . | . . . Combat Hostiles . | . . . Follow-up Attacks . | . . . Damage Inflicted 1881 | 28 1065 788 Guns 1307 | 28 804 475 Cannons 313 | . . 313 Explosions 261 | . 261 . Melee . | . . . Ramming . | . . . Kinetic 922 | 28 804 90 Thermal 698 | . . 698 Explosive 261 | . 261 . Electromagnetic . | . . . Impact . | . . . Slashing . | . . . Piercing . | . . . Highest Corruption . | . . . Average Corruption . | . . . Corruption Purged . | . . . Overload Shots . | . . . Overflow Damage 4 | . . 4 Projectiles 4 | . . 4 Explosions . | . . . Melee . | . . . Knockbacks . | . . . Impact . | . . . Kinetic . | . . . Secondary . | . . . Self-Inflicted Damage 35 | . 35 . Shots 1 | . 1 . Rammed . | . . . Targets Rammed . | . . . Kicked . | . . . Crushed . | . . . Highest Temperature 407 | . 18 407 Average Temperature 117 | . 6 141 Received Heat Transfer 576 | . 216 360 Effects 1 | . . 1 Energy Bleed 1 | . . 1 Siege Activations . | . . . Robots Corrupted . | . . . Combat Hostiles . | . . . Parts Fried . | . . . Impact Corruptions . | . . . Robots Melted . | . . . Combat Hostiles . | . . . Parts Melted 2 | . . 2 Heat Transferred 1665 | . . 1665 Parts Sabotaged . | . . . Parts Stolen . | . . . Parts Stripped . | . . . Power Chain Reactions . | . . . Missiles Intercepted . | . . . Alert | -11 -10 -10 ------- Run | Scr Mat Min Peak Influence 493 | 5 493 289 Initial 85 | . 3 85 Average 167 | 1 248 123 Maximum Alert Level 2 | . 2 1 Low Security (%) 66 | 100 26 95 Level 1 32 | . 71 4 Level 2 1 | . 2 . Level 3 . | . . . Level 4 . | . . . Level 5 . | . . . High Security . | . . . Max Security . | . . . Squads Dispatched 4 | . 4 . Investigation 2 | . 2 . Extermination . | . . . Reinforcement 2 | . 2 . Assault . | . . . Garrison . | . . . Intercept . | . . . Construction Impeded . | . . . Haulers Reinforced . | . . . Cargo Convoy Interrupts . | . . . Stealth | -11 -10 -10 --------- Run | Scr Mat Min Distress Signals 1 | . 1 . Communications Jammed . | . . . Distress Signals . | . . . Times Spotted 48 | . 32 16 Peak Tracking Total 5 | . 5 3 Tactical Retreats 3 | . 1 2 Traps | -11 -10 -10 ------- Run | Scr Mat Min Traps Triggered 2 | . 2 . Indirectly . | . . . Trap Hack Attempts . | . . . Triggered . | . . . Disarmed . | . . . Reprogrammed . | . . . Reused . | . . . Traps Extracted . | . . . Installed . | . . . Triggered . | . . . Machines | -11 -10 -10 ---------- Run | Scr Mat Min Machines Disabled . | . . . Max in Single Turn . | . . . Machines Sabotaged . | . . . Garrisons Compromised . | . . . Overloaded Fab Kills . | . . . Fab Network Shutdowns . | . . . Hacking | -11 -10 -10 --------- Run | Scr Mat Min Machines Accessed 5 | . 4 1 Terminals 5 | . 4 1 Fabricators . | . . . Repair Stations . | . . . Recycling Units . | . . . Scanalyzers . | . . . Garrison Access . | . . . Total Hacks 20 | . 15 5 Successful 7 | . 5 2 Failed 13 | . 10 3 Catastrophic 1 | . 1 . Database Lockouts . | . . . Manual 18 | . 13 5 Terminals 20 | . 15 5 Fabricators . | . . . Repair Stations . | . . . Recycling Units . | . . . Scanalyzers . | . . . Garrison Access . | . . . Terminal Hacks 5 | . 3 2 Record 1 | . 1 . Part Schematic 2 | . . 2 Branch Access Points 1 | . 1 . Alert Level 1 | . 1 . Fabricator Hacks . | . . . Repair Station Hacks . | . . . Recycling Unit Hacks . | . . . Scanalyzer . | . . . Garrison Access Hacks . | . . . Unauthorized Hacks 2 | . 2 . Terminals 2 | . 2 . Botnet 1 | . 1 . Operators 1 | . 1 . Fabricators . | . . . Repair Stations . | . . . Recycling Units . | . . . Scanalyzers . | . . . Garrison Access . | . . . Data Cores Recovered . | . . . Used . | . . . Hacking Detections 5 | . 4 1 Full Trace Events 2 | . 2 . Feedback Events . | . . . Feedback Blocked . | . . . Robot Schematics Acquired . | . . . Robots Built . | . . . Matter . | . . . Time . | . . . Total Robot Build Rating . | . . . Part Schematics Acquired 2 | . . 2 Parts Built . | . . . Matter . | . . . Time . | . . . Total Part Build Rating . | . . . Parts Repaired . | . . . Time . | . . . Parts Recycled . | . . . Recycled Matter . | . . . Retrieved Matter . | . . . Retrieved Components . | . . . Parts Scanalyzed . | . . . Part Schematics Acquired . | . . . Parts Damaged . | . . . Bothacking | -11 -10 -10 ------------ Run | Scr Mat Min Used RIF Installer . | . . . Robots Hacked . | . . . Non-combat . | . . . Combat . | . . . Robot Hacks Applied . | . . . Relay Couplers Released . | . . . Robots Rewired . | . . . Allies Hacked . | . . . Hacks Repelled . | . . . Allies | -11 -10 -10 -------- Run | Scr Mat Min Total Allies . | . . . Largest Group . | . . . Highest-Rated Group . | . . . Highest-Rated Ally . | . . . Total Orders . | . . . Ally Attacks . | . . . Total Damage . | . . . Kills . | . . . Allies Corrupted . | . . . Allies Melted . | . . . Intel | -11 -10 -10 ------- Run | Scr Mat Min Robot Analysis Total . | . . . Derelict Logs Recovered 3 | . . 3 Drone Launches . | . . . Drone Recoveries . | . . . Exploration | -11 -10 -10 ------------- Run | Scr Mat Min Turns Passed 2166 | 152 910 1104 Spaces Moved 982 | 80 415 487 Core 1 | 1 . . Treads 672 | 79 415 178 Legs 302 | . . 302 Wheels . | . . . Hover 7 | . . 7 Flight . | . . . Fastest Speed 50 | 50 160 160 Average Speed 177 | 158 160 195 Slowest Speed 360 | 160 160 360 Overloaded Moves . | . . . Propulsion Burnouts . | . . . Robots Hopped . | . . . Cave-ins Triggered . | . . . Exploration Rate (%) 49 | 5 63 81 Regions Visited 2 Branch Regions 1 Pre-discovered Areas 3 | . . 3 Known Exits Taken 1 | . 1 . Unknown Exits Taken 1 | 1 . . Scrap Searched 2 | . . 2 Spaces Dug . | . . . Terrain Destroyed 23 | . 22 1 Melee . | . . . Projectile 1 | . . 1 AOE 22 | . 22 . Terrain Rammed . | . . . Walls Destroyed . | . . . Machines Disabled . | . . . Actions | -11 -10 -10 --------- Run | Scr Mat Min Total 1190 | 95 535 560 Wait 25 | . 13 12 Move 980 | 79 414 487 Hop . | . . . Pick Up 27 | 6 17 4 Fast Attach 13 | 6 3 4 Attach 7 | . 2 5 Detach 2 | . . 2 Swap 4 | . 3 1 Drop 12 | . 9 3 Fire 120 | 4 74 42 Melee . | . . . Ram . | . . . Kick . | . . . Crush . | . . . Escape Stasis . | . . . Rewire . | . . . Trap . | . . . Miscellaneous . | . . . Route ------- -11/Scrapyard -10/Materials (discovered 3 exits: [*Mat] / *Min x2) -10/Mines (discovered 2 exits: [*Mat x2]) History --------- Turn | Location | Event 5 | -11/Scrapyard | Discovered new exit (range 16) 153 | -11/Scrapyard | Entered Materials 306 | -10/Materials | Build established: Mutant 530 | -10/Materials | Core integrity fell below 50% 560 | -10/Materials | Destroyed 9 combat bots 651 | -10/Materials | Identified exit to Mines 760 | -10/Materials | Discovered new exit (range 14) 1063 | -10/Materials | Entered Mines 1093 | -10/Mines | Learned location of Recycling (-8) 1183 | -10/Mines | Learned location of Storage (-8) 1237 | -10/Mines | Received a Rocket Launcher from a helpful Derelict 1279 | -10/Mines | Learned location of 1 exit from Materials 1497 | -10/Mines | Lost 3 parts (1n1u1w) 1690 | -10/Mines | Discovered new exit (range 15) 1706 | -10/Mines | A weapon hastily lodged in a ceiling crevice suddenly fell to the ground 1923 | -10/Mines | Core integrity fell below 20% 2068 | -10/Mines | Discovered new exit (range 11) 2124 | -10/Mines | Build established: Scavenger-Mutant 2167 | -10/Mines | Destroyed by G-47 Trooper with Particle Gun Last Messages --------------- 01706_ A Bore Cannon has been hastily shoved under some rubble with a note attached: "Boring, it is not. Although I admit enemies do get bored, for sure." 01710_ Dropped Lgt. Assault Rifle. 01710_ Acquired Bore Cannon. 01818_ Acquired Heat Sink. 01830_ Acquired 10 matter. 01858_ R-06 Scavenger destroyed. 01880_ K-01 Serf collects debris. 01921_ S-10 Pest destroyed. 01979_ Lgt. Ion Engine melted. 01979_ T-07 Excavator destroyed. 02033_ K-01 Serf destroyed. 02068_ EXIT=FOUND 02134_ Ion Engine destroyed. 02140_ Destroyed Lgt. Nuclear Core. 02140_ G-47 Trooper overheating. 02143_ Ion Engine melted. 02143_ G-34 Mercenary destroyed. 02167_ HV Slug penetrates Wall. Map ----- +----------------------------------------------------+ | ???????????????????????????????????????? | | ???????????????????????????????????????? | | ???????????????????????????????????????? | | ##?????????????????????????????????????? | | ?????????????????????????????????????? | | #?????????????????????????????????????? | | #?????????????????????????????????????? | | #?????????????????????????????????????? | | #??????????????????"??????????????????? | | ##????????????????? """????????????????? | | ???????????????????? ????????????????? | | ????????????????????""" ??####?????????? | | ??????????????????"?""" ### ##????????? | | ?????????????????"" ?"" #????????? | | ?????????????????? ?? < #????????? | | ???????????????????? ??# ##???????? | | ?????????????????????# ## #???????? | | ?????????????????????# #???????? | | ??????????????????# ## #???????? | | ????????????????????????## ##??????? | | ?????????????????????????## ;#??????? | | ??????????????????????????## ##??????? | | ??????????????????????????##g%= ####???? | | ?????????????????????????## ##??? | | ???????????????????????### #??? | | ???????????????????????# @ #??? | | ????????????????######?## # ### ##??? | | ????????????# #??#### #?# #???? | | ????????????# """" #?????# #?# #??? | | ??????####### """" #?????# ## #??? | | ###???#=%[=%= """" #?????# ## ##??? | | #####%##### #?????# #######???? | | |[#???# """" #?????# #?????????? | | %[ = *#???# """" ####### #?????????? | | ######???# """" *%= #?????????? | | #???????# ###########?####??? | | #???????###### ###?# ? ? #??? | | ##????????????# #???# """ """ #??? | | !%##?????######### #???# """ """ #??? | | [#?????## #???# """ """ #??? | | #?????# #???# #??? | | #????## #####???# """ """ #??? | | #?#### #???????# """ """ #??? | | ###!%* #####???# """ """ #??? | | !== #???# [=%[% #??? | | ## #???# *%"""=""" #??? | | ############ #???# =""" """ #??? | | ##??????????#=##### """ """ #??? | | ## #???????????#!%| #??? | | ### #???????????####### #??? | +----------------------------------------------------+ Best States ------------- Heat Dissipation 35 Energy Generation 10 Energy Capacity 250 Matter Stores 300 Matter Capacity 300 Sight Range 16 Terrain Scan Density 10 Armor Coverage 150 Evasion (%) 40 Recoil Reduction 2 Item Schematics ----------------- Hcp. Storage Unit | -10/Mines | Hacked Huge Storage Unit | -10/Mines | Hacked Robot Schematics ------------------ None Fabricated ------------ Nothing Alien Tech Used ----------------- None Achievements -------------- None Challenges ------------ None Game ------ Seed WeldingNeutrinoArray Manual? 0 Play Time 00:16:39 Cumulative 180.0 hours Start 2021.07.10 @ 22:44:36 End 2021.07.10 @ 23:27:37 Sessions 1 Manual Loads 0 Difficulty Rogue Special Mode None Game No. 58 Rogue 58 Adventurer 0 Explorer 0 Win Type - Total 4 Types 2/0/1/0/0/1/0/0/0 Lore% 69 Gallery% 78 Achievement% 67 Wizard Run 0 Options --------- ASCII 0 Keyboard 0 Movement Mouse Keybinds 0 Fullscreen 1 Font 18/SmallcapsGlow Map View 76x50 Tactical HUD 1 Map Filters NONE Filters NONE Steam 1 RUN: 7dc048d0-9ec8-4166-8919-b8c76b3c76df